bitfinex-derivatives/quotes_ETHF0:USTF0_20250528
["timestamp","ask_amount","ask_price","bid_price","bid_amount"]
[1748421707083,0.75669,2641.8,2641.7,0.75669]
[1748421707283,2.05108704,2641.8,2641.7,0.75669]
[1748421707782,1.29439704,2641.8,2641.7,0.75669]
[1748421708281,1.29439704,2641.8,2641.7,2.07279]
[1748421708685,1.46713919,2641.8,2641.7,2.07279]
[1748421709083,1.46713819,2641.8,2641.7,2.07279]
[1748421709285,1.46713823,2641.8,2641.7,2.07279]
[1748421710284,1.46713133,2641.8,2641.7,2.07279]
[1748421710482,1.46713112,2641.8,2641.7,2.07279]
[1748421711184,1.46712493,2641.8,2641.7,2.07279]
[1748421711386,1.46712474,2641.8,2641.7,2.07279]
[1748421711683,1.29409089,2641.8,2641.7,2.07279]
[1748421711885,0.6493,2642.3,2641.9,1.89164]
[1748421712080,1.46669972,2642.2,2642.1,0.75661]
[1748421712280,0.96669972,2642.2,2642.1,2.02951]
[1748421712886,0.75657,2642.3,2642.2,0.75658]
[1748421713080,0.75657,2642.3,2642.2,2.05728]
[1748421713589,3.2078,2642.4,2642.3,0.75655]
[1748421713783,3.96432,2642.4,2642.3,2.05725]
[1748421714183,3.2078,2642.4,2642.3,2.05725]
[1748421714391,3.96432,2642.4,2642.3,2.05725]
[1748421716391,3.96426,2642.7,2642.6,0.75646]
[1748421716693,3.96424,2642.7,2642.6,0.75646]
[1748421717088,0.75644,2642.7,2642.6,0.75646]
[1748421717293,0.75644,2642.7,2642.5,1.3255]
[1748421717294,0.75642,2642.8,2642.7,0.75641]
[1748421717489,0.75638,2642.9,2642.8,0.75641]
[1748421717698,0.75637,2643.0,2642.9,0.75638]
[1748421717987,2.75882,2643.2,2643.1,0.75632]
[1748421718299,0.75632,2643.1,2643.0,2.08183]
[1748421718687,0.75632,2643.1,2643.0,2.71103]
[1748421719590,2.75881,2643.2,2643.1,0.75632]
[1748421719790,1.39291,2643.2,2643.1,2.06642]
[1748421720191,0.6366,2643.2,2643.1,2.06642]
[1748421720491,1.39289,2643.2,2643.1,2.06642]
[1748421721087,0.6366,2643.2,2643.1,2.06642]
[1748421721287,3.2078,2643.6,2643.5,0.75621]
[1748421721691,3.96398,2643.6,2643.5,0.75621]
[1748421721892,3.96398,2643.6,2643.3,5.0301]
[1748421721893,0.75624,2643.5,2643.4,0.75621]
[1748421722093,0.75624,2643.5,2643.4,2.03611]
[1748421723191,0.75624,2643.5,2643.4,1.2799]
[1748421723397,0.75632,2643.2,2643.1,18.6369]
[1748421723599,0.75632,2643.2,2643.1,22.3559]
[1748421723795,2.4947,2643.3,2643.1,5.75521]
[1748421724096,0.75632,2643.2,2643.1,4.47531]
[1748421725793,0.75632,2643.1,2643.0,3.837]
[1748421725992,1.3194,2643.1,2642.8,3.719]
[1748421726202,0.75644,2642.7,2642.6,3.96424]
[1748421726403,0.75642,2642.8,2642.7,0.7564]
[1748421726697,0.75644,2642.7,2642.6,3.96424]
[1748421727000,0.75644,2642.7,2642.5,5.10359]
[1748421727001,0.75646,2642.6,2642.5,5.10359]
[1748421727799,2.07586,2642.6,2642.5,3.719]
[1748421728195,0.75649,2642.5,2642.4,0.00567848]
[1748421728400,2.03719,2642.5,2642.4,0.00567848]
[1748421728795,2.03719,2642.5,2642.4,0.76219848]
[1748421730397,0.75649,2642.5,2642.4,0.76219848]
[1748421730698,3.8644,2642.7,2642.6,0.75646]
[1748421731204,4.62084,2642.7,2642.6,0.75646]
[1748421733710,3.8644,2642.7,2642.6,0.75646]
[1748421733910,4.62084,2642.7,2642.6,0.75646]
[1748421734409,3.8644,2642.7,2642.6,0.75646]
[1748421735306,0.6664,2643.2,2643.1,0.75632]
[1748421735505,0.75635,2643.1,2643.0,0.75633]
[1748421735710,1.41865,2643.1,2643.0,0.75633]
[1748421736009,0.6623,2643.1,2643.0,0.75633]
[1748421736608,2.78242,2643.1,2643.0,0.75633]
[1748421737010,2.0261,2643.1,2643.0,0.75633]
[1748421737210,0.6623,2643.1,2643.0,0.75633]
[1748421737913,3.2078,2643.4,2643.3,0.75626]
[1748421738117,3.8358,2643.4,2643.3,0.75626]
[1748421738416,0.628,2643.4,2643.3,0.75626]
[1748421738915,2.78575,2643.7,2643.6,0.75618]
[1748421739116,3.41375,2643.7,2643.6,0.75618]
[1748421739518,2.6576,2643.7,2643.6,0.75618]
[1748421739919,3.41375,2643.7,2643.6,0.75618]
[1748421740219,2.6576,2643.7,2643.6,0.75618]
[1748421740814,3.2078,2644.4,2643.6,8.719]
[1748421741119,1.44466996,2644.3,2644.2,0.75601]
[1748421741316,1.44466388,2644.3,2644.2,0.75601]
[1748421741512,3.2078,2644.8,2644.1,3.2078]
[1748421741713,0.75598,2644.3,2644.2,1.3242]
[1748421741913,0.75601,2644.2,2644.1,3.2078]
[1748421742115,0.75612,2643.8,2643.7,0.00567848]
[1748421742320,0.75612,2643.8,2643.7,1.32987848]
[1748421742517,0.75611,2643.9,2643.7,1.32987848]
[1748421742720,1.3503,2644.0,2643.7,1.32987848]
[1748421742921,0.75612,2643.8,2643.7,2.08602848]
[1748421743121,0.75612,2643.8,2643.7,1.32987848]
[1748421743527,2.08712,2643.8,2643.7,1.32987848]
[1748421743820,2.08712,2643.8,2643.7,0.00567848]
[1748421746337,2.08712,2643.8,2643.7,0.76182848]
[1748421746936,2.08712,2643.8,2643.7,0.00567848]
[1748421748433,2.08712,2643.8,2643.7,0.76182848]
[1748421748634,2.08712,2643.8,2643.7,0.00567848]
[1748421749138,2.08712,2643.8,2643.7,0.76182848]
[1748421749939,2.08712,2643.8,2643.7,0.00567848]
[1748421751831,0.75626,2643.3,2643.2,3.8794]
[1748421752132,0.75625,2643.4,2643.3,0.75623]
[1748421752330,0.649,2643.7,2643.6,0.75618]
[1748421752530,0.649,2643.7,2643.6,3.96398]
[1748421752937,0.00567848,2643.9,2643.8,0.75612]
[1748421753139,0.76176848,2643.9,2643.8,0.75612]
[1748421753329,0.76176848,2643.9,2643.8,2.09902]
[1748421754041,0.75615,2643.7,2643.6,3.2078]
[1748421754340,0.75618,2643.6,2643.5,2.09909]
[1748421755135,2.02468,2643.6,2643.5,2.09909]
[1748421755942,1.2685,2643.6,2643.5,2.09909]
[1748421756934,0.6512,2643.7,2643.6,0.75618]
[1748421757136,0.6512,2643.7,2643.6,2.08468]
[1748421758346,1.40735,2643.7,2643.6,2.08468]
[1748421758736,2.71035,2643.7,2643.6,2.08468]
[1748421759341,1.9542,2643.7,2643.6,2.08468]
[1748421759836,0.6512,2643.7,2643.6,2.08468]
[1748421760040,0.6512,2643.7,2643.6,5.29248]
[1748421760943,0.00567848,2643.9,2643.8,0.75612]
[1748421761142,0.67287848,2643.9,2643.8,0.75612]
[1748421761441,0.67287848,2643.9,2643.8,2.70792]
[1748421762640,0.18524553,2643.9,2643.8,2.70792]
[1748421762845,1.90206814,2644.2,2644.1,0.75604]
[1748421763044,3.35408523,2644.2,2644.1,0.75604]
[1748421763247,4.11036745,2644.2,2644.1,0.75604]
[1748421763442,2.08160747,2644.2,2644.1,0.75604]
[1748421763637,2.08122744,2644.2,2644.1,0.75604]
[1748421763947,2.08121424,2644.2,2644.1,0.75604]
[1748421764438,1.44541424,2644.2,2644.1,1.39054]
[1748421764843,1.44550165,2644.2,2644.1,1.39054]
[1748421765045,1.26626814,2644.2,2644.1,1.39054]
[1748421765542,1.44562015,2644.2,2644.1,1.39054]
[1748421765949,1.26626814,2644.2,2644.1,1.39054]
[1748421766239,0.76626814,2644.2,2644.1,1.39054]
[1748421766437,0.27196814,2644.2,2644.1,1.39054]
[1748421766636,0.27196814,2644.2,2644.1,2.75694]
[1748421768751,3.96371,2644.6,2644.5,0.75592]
[1748421768934,3.38700578,2644.6,2644.5,0.75592]
[1748421769134,0.75584,2644.9,2644.8,0.7558]
[1748421769545,0.93497806,2644.9,2644.8,0.7558]
[1748421769941,0.75584,2644.8,2644.7,2.02744]
[1748421770248,0.93497646,2644.8,2644.7,2.02744]
[1748421770546,0.75584,2644.8,2644.7,2.02744]
[1748421770847,0.93491547,2644.8,2644.7,2.02744]
[1748421771047,0.75592,2644.5,2644.4,1.39765]
[1748421771246,0.75592,2644.5,2644.4,2.72925]
[1748421771439,0.75592,2644.5,2644.4,1.9733]
[1748421771647,0.75604,2644.1,2644.0,4.47106]
[1748421771944,0.75604,2644.1,2643.8,3.2078]
[1748421771945,0.75603,2644.2,2644.1,2.0876]
[1748421772639,1.38503,2644.2,2644.1,2.0876]
[1748421772848,1.56411054,2644.2,2644.1,2.0876]
[1748421773044,1.38503,2644.2,2644.1,2.0876]
[1748421773243,1.38503,2644.2,2644.1,1.3316]
[1748421773442,1.38503,2644.2,2644.1,2.08764]
[1748421774849,1.56410008,2644.2,2644.1,2.08764]
[1748421775151,1.38503,2644.2,2644.1,2.08764]
[1748421775845,2.23408816,2644.2,2644.1,2.08764]
[1748421776343,2.23410258,2644.2,2644.1,2.08764]
[1748421776944,2.23409546,2644.2,2644.1,1.3316]
[1748421777352,2.2340957,2644.2,2644.1,1.3316]
[1748421777647,0.75609,2644.0,2643.9,0.75609]
[1748421777850,0.75609,2644.0,2643.9,2.02169]
[1748421779451,0.75609,2644.0,2643.9,1.2656]
[1748421779651,0.75609,2644.0,2643.9,0.75609]
[1748421780138,2.12044,2644.1,2644.0,0.75606]
[1748421780454,0.629,2644.2,2644.1,0.75604]
[1748421780751,0.75598,2644.3,2644.2,0.75598]
[1748421780947,0.9350458,2644.3,2644.2,0.75598]
[1748421781146,3.2078,2644.4,2644.1,1.9699]
[1748421781444,3.2078,2644.4,2644.3,0.75598]
[1748421784049,2.38022,2644.4,2644.3,0.75598]
[1748421784347,0.75581,2645.0,2644.9,0.75579]
[1748421784551,2.02796638,2645.0,2644.9,0.75579]
[1748421784755,2.20784955,2645.0,2644.9,0.75579]
[1748421784947,0.75584,2644.9,2644.8,0.75582]
[1748421785147,0.93520282,2644.9,2644.8,2.08782]
[1748421785347,0.93515831,2644.9,2644.8,2.08782]
[1748421785548,0.93515815,2644.9,2644.8,2.08784]
[1748421786348,2.20815074,2644.9,2644.8,1.332]
[1748421787051,2.2081043,2644.9,2644.8,1.332]
[1748421787351,0.93515282,2644.9,2644.8,1.332]
[1748421787752,0.93515282,2644.9,2644.8,2.08784]
[1748421788244,2.20821855,2644.9,2644.8,2.08784]
[1748421788549,0.75584,2644.9,2644.8,2.08784]
[1748421788752,0.93518222,2644.9,2644.8,2.08784]
[1748421789049,0.75584,2644.9,2644.8,2.08784]
[1748421789351,0.93518335,2644.9,2644.8,2.08784]
[1748421789751,2.08159,2645.0,2644.9,0.75581]
[1748421789952,3.35454748,2645.0,2644.9,0.75581]
[1748421790245,3.53406864,2645.0,2644.9,0.75581]
[1748421790447,3.53406701,2645.0,2644.9,0.75581]
[1748421790651,3.53404794,2645.0,2644.9,0.75581]
[1748421791351,3.53405794,2645.0,2644.8,1.332]
[1748421791648,0.7558,2645.0,2644.9,0.75581]
[1748421791852,2.2119132,2645.0,2644.9,0.75581]
[1748421792156,0.75581,2644.9,2644.8,2.08782]
[1748421792451,0.93521269,2644.9,2644.8,2.08782]
[1748421792843,0.75581,2644.9,2644.8,2.08782]
[1748421793040,0.9352211,2644.9,2644.8,2.08782]
[1748421793245,0.93522193,2644.9,2644.8,2.08782]
[1748421793451,2.032644,2644.9,2644.8,1.332]
[1748421793651,3.54435897,2644.9,2644.8,2.08784]
[1748421793854,1.45624897,2644.9,2644.8,2.08784]
[1748421794355,0.776834,2644.9,2644.8,2.72934]
[1748421794548,1.39217,2645.4,2645.2,0.7557]
[1748421794848,1.39217,2645.4,2645.3,1.2877]
[1748421795041,0.6365,2645.4,2645.1,3.2078]
[1748421795248,0.17938766,2645.3,2645.2,1.363]
[1748421795447,0.6365,2645.4,2645.2,2.11871]
[1748421795652,1.39216,2645.4,2645.3,0.6724]
[1748421795855,0.17929955,2645.4,2645.3,2.79109]
[1748421796049,0.93495955,2645.4,2645.3,2.79109]
[1748421796251,0.75566,2645.4,2645.3,2.0354]
[1748421796452,0.17925282,2645.4,2645.3,2.0354]
[1748421796656,0.93490642,2645.4,2645.3,2.79108]
[1748421797049,0.93471712,2645.4,2645.3,2.79108]
[1748421797250,3.2078,2645.7,2645.3,7.0354]
[1748421797454,0.75561,2645.6,2645.5,3.2078]
[1748421797859,0.75566,2645.4,2645.3,0.00567848]
[1748421798051,0.93465564,2645.4,2645.3,0.00567848]
[1748421798252,0.75566,2645.4,2645.3,0.00567848]
[1748421798458,2.92822397,2645.4,2645.3,0.00567848]
[1748421798659,2.92822741,2645.4,2645.3,0.00567848]
[1748421798956,2.92822472,2645.4,2645.3,0.00567848]
[1748421799856,2.92819639,2645.4,2645.3,0.00567848]
[1748421800048,2.92819719,2645.4,2645.3,0.00567848]
[1748421800256,2.74926,2645.4,2645.3,0.00567848]
[1748421800756,2.92819733,2645.4,2645.3,0.00567848]
[1748421801354,2.92799023,2645.4,2645.3,0.00567848]
[1748421801551,2.74926,2645.4,2645.3,0.00567848]
[1748421801955,2.92798217,2645.4,2645.3,1.35727848]
[1748421802260,2.92798173,2645.4,2645.3,1.35727848]
[1748421802562,1.58038173,2645.4,2645.3,1.35727848]
[1748421802763,1.58039011,2645.4,2645.3,1.35727848]
[1748421802968,1.40166,2645.4,2645.3,1.35727848]
[1748421805259,0.75566,2645.5,2645.4,0.75565]
[1748421805765,0.75566,2645.4,2645.3,1.35727848]
[1748421806065,0.75566,2645.4,2645.3,0.00567848]
[1748421806654,1.39456,2645.4,2645.3,0.00567848]
[1748421806859,1.57335828,2645.4,2645.3,0.00567848]
[1748421807063,1.57335628,2645.4,2645.3,0.00567848]
[1748421807261,1.39456,2645.4,2645.3,0.00567848]
[1748421807659,1.57336172,2645.4,2645.3,0.00567848]
[1748421807868,2.8440649,2645.4,2645.3,0.00567848]
[1748421808362,2.84414434,2645.4,2645.3,0.00567848]
[1748421808562,2.84414439,2645.4,2645.3,0.00567848]
[1748421808758,2.66526318,2645.4,2645.3,0.00567848]
[1748421808963,0.75578,2645.0,2644.9,3.2078]
[1748421809165,2.02779258,2645.0,2644.9,3.2078]
[1748421809561,2.20685179,2645.0,2644.9,3.2078]
[1748421809967,2.20685179,2645.0,2644.9,3.96361]
[1748421810167,2.02779258,2645.0,2644.9,5.87741]
[1748421810667,2.20685241,2645.0,2644.9,5.1216]
[1748421811165,2.20685659,2645.0,2644.9,5.1216]
[1748421811463,0.75577,2645.1,2645.0,0.75578]
[1748421811662,2.20752692,2645.1,2645.0,1.351]
[1748421811868,0.93490686,2645.1,2645.0,1.351]
[1748421812067,2.06397,2645.1,2645.0,1.351]
[1748421812269,3.51577497,2645.1,2645.0,1.351]
[1748421812457,3.5157906,2645.1,2645.0,1.351]
[1748421812662,3.51578779,2645.1,2645.0,1.351]
[1748421812963,0.75578,2645.0,2644.9,3.2078]
[1748421813165,3.51579779,2645.0,2644.9,3.2078]
[1748421813765,3.51585511,2645.0,2644.9,3.2078]
[1748421814167,3.33663468,2645.0,2644.9,3.2078]
[1748421814367,0.75581,2644.9,2644.8,2.10683]
[1748421814672,1.44211,2644.9,2644.8,0.75583]
[1748421815072,0.75584,2644.8,2644.7,0.00567848]
[1748421815568,3.33657295,2644.8,2644.7,0.00567848]
[1748421817371,3.51588126,2644.8,2644.7,0.00567848]
[1748421817570,3.51588541,2644.8,2644.7,0.00567848]
[1748421817872,3.33657295,2644.8,2644.7,0.00567848]
[1748421818074,3.51588542,2644.8,2644.7,0.00567848]
[1748421818269,3.51588426,2644.8,2644.7,0.00567848]
[1748421818576,3.51581362,2644.8,2644.7,0.00567848]
[1748421818872,3.33657295,2644.8,2644.7,0.00567848]
[1748421819073,3.51581406,2644.8,2644.7,0.00567848]
[1748421819275,3.33657295,2644.8,2644.7,0.00567848]
[1748421819470,3.77945,2644.7,2644.1,4.4811]
[1748421819670,0.75601,2644.2,2644.1,5.23712]
[1748421820175,0.756,2644.3,2644.2,0.75598]
[1748421821567,0.756,2644.3,2644.2,5.75598]
[1748421821772,0.75594,2644.5,2644.4,0.75591]
[1748421822071,0.75591,2644.6,2644.5,0.75589]
[1748421822369,0.75591,2644.6,2644.5,1.38699]
[1748421823177,0.75591,2644.6,2644.5,0.6311]
[1748421823373,0.75592,2644.5,2644.4,0.75594]
[1748421823569,0.75598,2644.3,2644.2,1.41119]
[1748421824173,0.75596,2644.5,2644.2,0.6552]
[1748421824378,0.75596,2644.5,2644.4,0.75593]
[1748421825273,0.75597,2644.4,2644.3,0.75596]
[1748421825480,0.75598,2644.3,2644.2,1.41119]
[1748421825882,0.75597,2644.4,2644.3,0.75596]
[1748421826580,2.56437,2644.7,2644.2,0.6552]
[1748421826876,0.75597,2644.4,2644.3,0.75594]
[1748421828476,0.75597,2644.4,2644.3,2.01994]
[1748421828873,3.21347848,2645.2,2644.3,6.264]
[1748421829079,0.75583,2644.9,2644.8,0.75581]
[1748421829275,0.75584,2644.8,2644.7,2.73905]
[1748421829479,0.75583,2644.9,2644.8,0.75582]
[1748421829775,0.75583,2644.9,2644.8,2.10222]
[1748421829976,0.75583,2644.9,2644.8,1.3464]
[1748421830177,0.75579,2645.0,2644.9,0.75578]
[1748421830381,0.93474294,2645.0,2644.9,0.75578]
[1748421830878,0.75579,2645.0,2644.9,0.75578]
[1748421831078,0.75581,2644.9,2644.8,1.3464]
[1748421831282,0.75581,2644.9,2644.8,2.10224]
[1748421833280,3.15470848,2645.2,2644.8,2.10224]
[1748421833281,1.89498848,2645.2,2644.8,1.3464]
[1748421833480,0.7558,2645.0,2644.9,5.32448]
[1748421833783,0.7558,2645.0,2644.9,2.11668]
[1748421833981,0.7558,2645.0,2644.9,1.3609]
[1748421834181,0.7558,2645.0,2644.9,2.11671]
[1748421834684,0.7558,2645.0,2644.9,5.32451]
[1748421836289,0.93489994,2645.0,2644.9,5.32451]
[1748421836481,0.7558,2645.0,2644.9,5.32451]
[1748421836782,0.93489688,2645.0,2644.9,5.32451]
[1748421836980,0.7558,2645.0,2644.9,5.32451]
[1748421837887,0.75577,2645.1,2645.0,0.75575]
[1748421838089,2.20944431,2645.1,2645.0,2.12405]
[1748421838791,2.03030058,2645.1,2645.0,2.12405]
[1748421838990,2.20946183,2645.1,2645.0,2.12405]
[1748421839193,2.03030058,2645.1,2645.0,2.0399]
[1748421839488,2.03030058,2645.1,2645.0,2.79568]
[1748421839686,0.9349309,2645.1,2645.0,2.79568]
[1748421839892,0.1791609,2645.1,2645.0,2.79568]
[1748421840088,0.76140848,2645.2,2645.1,0.75575]
[1748421840288,0.94055782,2645.2,2645.1,2.76685]
[1748421840790,0.94055727,2645.2,2645.1,2.0111]
[1748421840990,0.76140848,2645.2,2645.1,2.0111]
[1748421841193,0.94055366,2645.2,2645.1,2.76685]
[1748421841988,0.94050131,2645.2,2645.1,2.76685]
[1748421842189,0.94050116,2645.2,2645.1,2.76685]
[1748421842388,0.94049667,2645.2,2645.1,2.76685]
[1748421842590,0.94049667,2645.2,2645.1,1.3683]
[1748421842788,0.94047639,2645.2,2645.1,1.3683]
[1748421843390,0.76140848,2645.2,2645.1,1.3683]
[1748421844990,0.94042574,2645.2,2645.1,1.3683]
[1748421845395,0.76140848,2645.2,2645.1,1.3683]
[1748421846199,0.75578,2645.0,2644.9,3.2078]
[1748421846891,0.75581,2644.9,2644.8,1.2933]
[1748421847289,2.00181,2644.9,2644.8,1.2933]
[1748421847488,0.75589,2644.6,2644.5,3.2078]
[1748421847701,0.75595,2644.4,2644.3,1.2919]
[1748421848593,2.00195,2644.4,2644.3,1.2919]
[1748421849394,0.75598,2644.3,2644.2,0.6202]
[1748421849596,2.00198,2644.3,2644.2,1.2919]
[1748421851697,2.18105131,2644.3,2644.2,1.2919]
[1748421852203,2.00198,2644.3,2644.2,1.2919]
[1748421852703,0.75601,2644.2,2644.1,3.2078]
[1748421853197,0.75601,2644.2,2644.1,4.5022]
[1748421853398,0.75601,2644.2,2644.1,5.25824]
[1748421854805,0.756,2644.3,2644.2,0.75598]
[1748421855002,0.756,2644.3,2644.2,2.05038]
[1748421855601,0.756,2644.3,2644.2,1.2944]
[1748421856506,0.756,2644.3,2644.2,2.05041]
[1748421856706,0.756,2644.3,2644.2,1.2944]
[1748421859710,0.75601,2644.2,2644.1,3.2078]
[1748421859911,0.75601,2644.2,2644.1,4.4597]
[1748421863914,0.75601,2644.2,2644.1,5.21574]
[1748421865118,0.75601,2644.2,2644.1,4.4597]
[1748421865315,0.75601,2644.2,2644.1,5.21574]
[1748421866416,0.75601,2644.2,2644.1,4.4597]
[1748421866914,0.75601,2644.2,2644.1,5.21573]
[1748421867910,0.75601,2644.3,2644.2,0.75597]
[1748421868113,0.75601,2644.3,2644.2,2.07227]
[1748421870719,0.75601,2644.3,2644.2,1.3163]
[1748421871615,0.75601,2644.3,2644.2,18.6833]
[1748421871918,0.75601,2644.3,2644.2,1.3163]
[1748421873217,2.03051522,2644.3,2644.2,1.3163]
[1748421874822,2.20964641,2644.3,2644.2,1.3163]
[1748421875119,2.20964602,2644.3,2644.2,1.3163]
[1748421875320,2.03051522,2644.3,2644.2,1.3163]
[1748421878025,2.03364637,2644.3,2644.2,1.3163]
[1748421882330,2.03386624,2644.3,2644.2,1.3163]
[1748421884630,2.21355272,2644.3,2644.2,1.3163]
[1748421884829,2.03386624,2644.3,2644.2,1.3163]
[1748421885331,2.21354877,2644.3,2644.2,1.3163]
[1748421885726,2.2135514,2644.3,2644.2,1.3163]
[1748421886228,2.21355919,2644.3,2644.2,1.3163]
[1748421887134,1.45754919,2644.3,2644.2,2.07231]
[1748421887433,0.17969295,2644.3,2644.2,5.81231]
[1748421887630,0.7559,2644.6,2644.5,0.75592]
[1748421887843,0.7559,2644.6,2644.5,3.96372]
[1748421888026,0.7559,2644.6,2644.5,3.2078]
[1748421888528,0.7559,2644.6,2644.5,3.96372]
[1748421888725,3.199,2645.1,2644.5,4.5016]
[1748421889040,0.75584,2644.8,2644.7,0.75585]
[1748421889224,0.75584,2644.8,2644.7,2.04965]
[1748421889432,0.75584,2644.8,2644.7,2.70375]
[1748421889935,0.75584,2644.8,2644.7,1.9479]
[1748421891639,0.75584,2644.8,2644.7,5.1557]
[1748421891829,0.75584,2644.8,2644.7,5.91156]
[1748421892029,0.75584,2644.8,2644.7,5.1557]
[1748421892535,0.75584,2644.8,2644.7,2.70376]
[1748421892837,0.75584,2644.8,2644.7,5.91156]
[1748421893137,0.7558,2645.0,2644.9,0.7558]
[1748421893835,0.7558,2645.0,2644.9,1.3641]
[1748421899341,0.7558,2645.0,2644.9,2.11991]
[1748421900237,0.7558,2645.0,2644.9,1.3641]
[1748421900436,0.75584,2644.8,2644.7,3.2078]
[1748421901029,0.75578,2645.0,2644.9,0.75577]
[1748421901535,0.65817848,2645.2,2644.8,1.8789]
[1748421901742,0.75581,2644.9,2644.8,1.39464]
[1748421902235,0.75581,2644.9,2644.8,0.6388]
[1748421902630,0.75581,2644.9,2644.8,1.39464]
[1748421902840,0.75581,2644.9,2644.8,0.6388]
[1748421903236,0.75581,2644.9,2644.8,1.39464]
[1748421905334,0.75581,2644.9,2644.8,0.6388]
[1748421905939,0.75584,2644.8,2644.7,3.2078]
[1748421906138,1.42844,2644.8,2644.7,3.2078]
[1748421906436,1.42844,2644.8,2644.7,3.96366]
[1748421906837,1.42844,2644.8,2644.7,4.61096]
[1748421907642,1.42844,2644.8,2644.7,3.2078]
[1748421907848,1.60140484,2644.8,2644.7,3.2078]
[1748421909143,1.60142523,2644.8,2644.7,3.2078]
[1748421909339,1.60142517,2644.8,2644.7,3.2078]
[1748421909844,0.75592,2644.5,2644.4,3.8551]
[1748421910439,0.75592,2644.5,2644.4,4.61105]
[1748421911041,0.75592,2644.5,2644.4,3.8551]
[1748421911347,0.75592,2644.5,2644.4,3.2078]
[1748421912046,0.75601,2644.2,2644.1,3.2078]
[1748421914645,0.92921608,2644.2,2644.1,3.2078]
[1748421914853,0.92921622,2644.2,2644.1,3.2078]
[1748421915151,2.19773256,2644.2,2644.1,3.2078]
[1748421915345,0.75601,2644.2,2644.1,3.2078]
[1748421919157,1.43041,2644.2,2644.1,3.2078]
[1748421923156,0.75604,2644.1,2644.0,1.31557848]
[1748421923358,0.75618,2643.6,2643.5,6.9278]
[1748421923560,0.75618,2643.6,2643.5,3.2078]
[1748421923962,0.75618,2643.6,2643.5,4.4453]
[1748421924161,0.75618,2643.6,2643.5,3.2078]
[1748421924362,2.72668,2643.6,2643.5,3.2078]
[1748421926467,0.75624,2643.4,2643.3,0.00567848]
[1748421928865,0.75624,2643.4,2643.0,0.75634]
[1748421928866,3.2078,2643.4,2643.0,0.75634]
[1748421929164,3.2078,2643.4,2643.0,1.9865]
[1748421929370,0.669,2643.6,2643.1,2.51519]
[1748421929575,0.75622,2643.5,2643.4,0.75622]
[1748421929761,1.4252,2643.6,2643.4,0.75622]
[1748421930066,0.00567848,2643.8,2643.7,0.75615]
[1748421930363,0.76179848,2643.8,2643.7,0.75615]
[1748421930964,0.76179848,2643.8,2643.7,2.10325]
[1748421931273,0.00567848,2643.8,2643.7,2.10325]
[1748421931763,0.76179848,2643.8,2643.7,2.10325]
[1748421932070,0.00567848,2643.8,2643.7,2.10325]
[1748421934075,0.76179848,2643.8,2643.7,2.10325]
[1748421935071,0.76179848,2643.8,2643.7,1.3471]
[1748421935672,0.76179848,2643.8,2643.7,2.10325]
[1748421936973,0.00567848,2643.8,2643.7,5.82325]
[1748421938171,0.00567848,2643.8,2643.7,10.82325]
[1748421938373,1.88953,2644.9,2644.5,0.75592]
[1748421938577,0.75592,2644.6,2644.5,0.75592]
[1748421938870,0.75592,2644.5,2644.4,1.42723]
[1748421939469,0.75592,2644.6,2644.5,0.75589]
[1748421940479,0.75592,2644.5,2644.4,0.6713]
[1748421941680,0.75592,2644.5,2644.4,1.42725]
[1748421944780,0.75595,2644.4,2644.3,3.2078]
[1748421945183,3.21507,2644.6,2644.3,3.96378]
[1748421945480,0.75595,2644.4,2644.3,3.96378]
[1748421946579,0.75595,2644.4,2644.3,3.2078]
[1748421946781,0.75604,2644.2,2644.1,0.75601]
[1748421947281,0.756,2644.3,2644.2,0.75598]
[1748421947481,1.38037,2644.4,2644.3,0.75598]
[1748421948684,0.75604,2644.2,2644.1,0.756]
[1748421952784,2.08014,2644.2,2644.1,0.756]
[1748421953084,0.75604,2644.2,2644.1,0.756]
[1748421954388,0.756,2644.3,2644.2,0.75601]
[1748421959091,0.756,2644.3,2644.2,2.05651]
[1748421960391,0.75598,2644.3,2644.2,2.05651]
[1748421961593,1.38036,2644.4,2644.3,0.75598]
[1748421961892,1.55368476,2644.4,2644.3,2.00018]
[1748421962394,0.6244,2644.4,2644.3,2.00018]
[1748421963491,1.38035,2644.4,2644.3,2.00018]
[1748421964703,1.38035,2644.4,2644.3,1.2442]
[1748421964888,0.75598,2644.3,2644.2,3.2078]
[1748421965193,2.18557457,2644.3,2644.2,3.2078]
[1748421965394,3.28219284,2644.3,2644.2,3.2078]
[1748421965589,3.45569425,2644.3,2644.2,3.2078]
[1748421965792,3.45569425,2644.3,2644.2,3.96381]
[1748421966298,3.45569316,2644.3,2644.2,3.96381]
[1748421966594,3.45569316,2644.3,2644.2,3.2078]
[1748421966892,3.28219284,2644.3,2644.2,3.96381]
[1748421967094,0.75604,2644.1,2644.0,1.3147]
[1748421967393,0.75608,2644.0,2643.9,0.75606]
[1748421967601,0.671,2644.0,2643.9,2.07076]
[1748421967796,0.75603,2644.2,2644.1,0.75602]
[1748421968094,2.20017252,2644.2,2644.1,0.75602]
[1748421968291,1.44414252,2644.2,2644.1,0.75602]
[1748421968488,1.44410684,2644.2,2644.1,0.75602]
[1748421968694,1.44410683,2644.2,2644.1,0.75602]
[1748421968889,1.44410548,2644.2,2644.1,0.75602]
[1748421969191,1.27062146,2644.2,2644.1,0.75602]
[1748421969403,1.44410098,2644.2,2644.1,1.43922]
[1748421969895,1.44410098,2644.2,2644.1,2.76182]
[1748421970095,2.02663146,2644.2,2644.1,2.76182]
[1748421970290,2.20010921,2644.2,2644.1,2.76182]
[1748421970491,2.20010708,2644.2,2644.1,2.76182]
[1748421970693,2.20012981,2644.2,2644.1,2.76182]
[1748421970893,2.02663146,2644.2,2644.1,2.76182]
[1748421971194,2.20012976,2644.2,2644.1,2.76182]